bitfinex/quotes_ETHUSD_20260130
["timestamp","ask_amount","ask_price","bid_price","bid_amount"]
[1769809444315,0.001,2694.7,2693.9,14.17508681]
[1769809449915,0.001,2694.7,2693.9,0.92802256]
[1769809450807,13.38639309,2694.7,2693.5,0.92923105]
[1769809451006,13.38539309,2694.5,2693.5,0.92924341]
[1769809451523,13.38539309,2694.5,2693.5,0.0011]
[1769809451890,13.38539309,2694.5,2693.5,0.92925858]
[1769809453922,14.31324344,2694.4,2693.6,0.92812313]
[1769809454100,14.31416537,2694.7,2693.6,14.64532836]
[1769809454300,0.92877228,2694.7,2693.6,14.64532836]
[1769809456221,0.001,2694.7,2693.6,14.64532836]
[1769809456606,0.001,2694.7,2693.7,0.0011]
[1769809456924,0.001,2694.5,2693.8,1.46464284]
[1769809457306,13.38639309,2694.5,2693.7,0.0011]
[1769809459604,0.92785035,2694.4,2693.7,0.0011]
[1769809461530,14.31423306,2694.5,2693.7,0.0011]
[1769809461835,0.92882194,2694.5,2693.7,0.0011]
[1769809462042,0.92882194,2694.5,2693.7,1.37304052]
[1769809462536,14.31421503,2694.5,2693.7,1.37304052]
[1769809462742,14.31421503,2694.5,2693.7,0.0011]
[1769809463548,0.001,2694.5,2693.7,13.71830523]
[1769809464144,0.001,2694.5,2693.8,14.49420523]
[1769809466647,0.001,2694.5,2693.9,14.64522779]
[1769809469240,0.001,2694.3,2693.9,14.64522779]
[1769809469447,0.001,2694.3,2694.0,15.63063704]
[1769809470551,14.31298458,2695.2,2694.0,15.63063704]
[1769809470734,14.31298458,2695.2,2694.1,14.6451589]
[1769809471036,13.38539309,2695.2,2694.1,14.6451589]
[1769809472030,14.31297,2695.2,2694.1,0.92795367]
[1769809472233,13.38539309,2695.0,2694.2,0.777]
[1769809474343,13.38539309,2695.0,2694.3,0.92788479]
[1769809474542,0.92763287,2695.1,2694.3,0.92788479]
[1769809475749,14.31302596,2695.1,2694.3,0.92788479]
[1769809476341,13.38539309,2695.4,2694.3,0.92788479]
[1769809476542,1.33853931,2695.3,2694.3,14.57390817]
[1769809476844,14.14477888,2695.3,2694.3,14.57390817]
[1769809478334,14.14477888,2695.3,2694.3,0.92788479]
[1769809478540,14.50183761,2695.2,2694.3,0.92788479]
[1769809481116,13.57526267,2695.0,2694.3,0.92788479]
[1769809481314,13.57526267,2695.0,2694.3,1.46953749]
[1769809483527,14.50291038,2695.0,2694.3,1.46953749]
[1769809484354,14.50291038,2695.0,2693.5,13.480591]
[1769809484558,14.50291038,2695.0,2693.8,0.92805243]
[1769809484757,14.50291038,2695.0,2693.6,3.71246573]
[1769809485622,14.50291038,2695.0,2693.7,13.480591]
[1769809486746,14.50291038,2695.0,2693.8,0.92805701]
[1769809486971,13.57426267,2694.8,2693.8,0.92805701]
[1769809489256,0.92774705,2694.7,2693.8,0.92805701]
[1769809491039,0.92774705,2694.7,2693.8,14.40754801]
[1769809492687,14.50200972,2694.7,2694.0,0.0011]
[1769809498693,14.50200972,2694.7,2694.0,0.92908812]
[1769809498897,16.5055301,2694.7,2694.0,0.92908812]
[1769809500188,15.57778305,2694.7,2694.0,0.92908812]
[1769809500391,15.57778305,2694.7,2694.0,14.40857912]
[1769809500566,2.00352038,2694.7,2694.0,14.40857912]
[1769809503392,2.93126966,2694.7,2694.0,14.40857912]
[1769809503589,16.50553233,2694.7,2694.0,0.92908812]
[1769809504174,2.00352038,2694.7,2694.0,14.40857912]
[1769809504495,14.50200167,2694.8,2694.0,15.03814454]
[1769809504800,0.3854105,2696.1,2694.4,5.51743643]
[1769809504973,22.28311477,2696.3,2694.1,3.801183]
[1769809504974,14.50149358,2696.2,2694.9,13.479491]
[1769809505174,5.0,2696.3,2695.2,13.479491]
[1769809505374,13.57426267,2696.8,2695.5,0.92747171]
[1769809505707,13.57426267,2696.5,2695.4,0.92749291]
[1769809506095,13.57426267,2696.5,2695.4,14.40698391]
[1769809506460,13.57426267,2696.5,2695.4,0.92749291]
[1769809506664,14.90931132,2696.4,2695.4,2.75751479]
[1769809507677,14.47908157,2696.3,2695.1,0.92760557]
[1769809508012,14.47908157,2696.3,2694.9,0.777]
[1769809508013,15.25608157,2696.3,2694.9,0.777]
[1769809508503,15.25608157,2696.3,2694.9,1.70467675]
[1769809508681,13.55188505,2696.1,2695.1,0.92760497]
[1769809509591,13.55188505,2696.1,2695.2,3.71029938]
[1769809509795,2.03222939,2696.2,2695.2,17.37300083]
[1769809510009,13.55188505,2697.0,2695.3,13.66270145]
[1769809510181,13.55188505,2696.7,2695.3,13.66270145]
[1769809510683,13.55188505,2696.7,2695.4,14.43970145]
[1769809510881,0.777,2696.8,2695.4,14.43970145]
[1769809511089,13.55188505,2697.2,2695.6,13.66270145]
[1769809511290,13.55188505,2697.2,2695.8,13.66270145]
[1769809511580,0.777,2697.5,2696.0,13.66270145]
[1769809511581,14.32888505,2697.5,2696.0,13.66270145]
[1769809511786,14.32888505,2697.5,2695.9,0.92733409]
[1769809511787,13.55188505,2697.5,2696.2,13.66270145]
[1769809511981,13.55188505,2697.8,2696.2,13.66270145]
[1769809513911,13.55188505,2697.8,2696.3,14.58989797]
[1769809514116,13.55188505,2697.6,2696.4,1.82986841]
[1769809514643,13.55188505,2697.6,2696.3,0.92719652]
[1769809514926,13.55188505,2697.6,2696.1,0.92724493]
[1769809515091,13.55188505,2697.4,2696.1,0.92725443]
[1769809515290,13.55188505,2697.2,2695.7,0.92738047]
[1769809515505,13.55188505,2697.0,2695.7,0.92738436]
[1769809515822,13.55188505,2697.0,2695.7,0.92738361]
[1769809515991,13.55188505,2696.8,2695.3,0.92754053]
[1769809516521,0.1024,2697.6,2695.3,0.92754053]
[1769809516522,11.69506005,2701.0,2697.0,7.21638157]
[1769809516832,0.0295481,2702.2,2696.9,10.94249835]
[1769809516833,13.46324075,2700.5,2698.5,0.2335703]
[1769809517066,13.46324075,2700.5,2698.6,0.777]
[1769809517250,0.0295481,2701.5,2698.0,9.13230277]
[1769809517251,13.55188505,2701.5,2698.9,9.13230277]
[1769809517425,0.92539206,2701.6,2698.4,9.13230277]
[1769809517426,13.55188505,2700.7,2698.4,9.13230277]
[1769809517772,13.55188505,2700.7,2698.9,9.36587307]
[1769809518058,0.777,2702.0,2699.2,0.2335703]
[1769809518268,0.777,2702.0,2699.4,13.89627175]
[1769809518269,13.55188505,2701.8,2699.4,13.89627175]
[1769809518568,13.55188505,2701.2,2699.1,0.92623467]
[1769809518861,13.55288505,2700.3,2699.1,0.92623467]
[1769809521731,13.55288505,2700.3,2699.0,3.70493868]
[1769809522785,0.001,2700.3,2699.0,3.70493868]
[1769809523470,13.55288505,2700.3,2699.0,0.92626898]
[1769809523786,13.55288505,2700.3,2698.7,0.92637195]
[1769809523950,14.90717356,2700.2,2698.8,0.5407942]
[1769809525169,14.90717356,2700.2,2698.5,1.12212107]
[1769809525170,13.55188505,2700.0,2698.5,1.12212107]
[1769809525499,13.55188505,2699.8,2698.4,0.92647487]
[1769809525799,13.55188505,2699.8,2698.5,0.92644023]
[1769809525964,13.55188505,2699.8,2698.0,3.70640373]
[1769809527392,14.47789022,2699.8,2698.0,3.70640373]
[1769809527684,0.1024,2699.9,2698.1,0.74129222]
[1769809527685,14.58733877,2699.7,2698.1,0.74129222]
[1769809527878,14.58733877,2699.7,2698.2,0.92654362]
[1769809529158,14.90717356,2700.2,2698.3,13.89627175]
[1769809530091,15.83303907,2700.2,2698.4,0.92647494]
[1769809530391,14.90717356,2700.2,2698.4,1.70247494]
[1769809530771,14.90717356,2700.2,2698.5,0.2335703]
[1769809531086,14.90717356,2700.2,2698.5,13.66270145]
[1769809531286,1.35814333,2700.1,2698.6,1.53662764]
[1769809531993,1.35814333,2700.1,2698.9,13.66270145]
[1769809532191,13.55188505,2700.7,2699.0,0.776]
[1769809533659,13.55188505,2700.7,2699.0,14.43870145]
[1769809534177,13.55188505,2701.1,2699.1,14.82250642]
[1769809534782,13.55188505,2701.1,2699.1,0.92623467]
[1769809534965,13.55188505,2700.9,2699.2,0.46311734]
[1769809535172,13.55188505,2700.9,2699.1,0.92623467]
[1769809536375,14.47753358,2700.9,2699.1,0.92623467]
[1769809536791,13.55188505,2700.9,2699.1,0.92623467]
[1769809537798,13.55188505,2700.9,2699.1,14.54344671]
[1769809537969,14.64781098,2700.8,2699.2,1.90243854]
[1769809538689,14.64781098,2700.8,2699.3,0.92616604]
[1769809538884,14.64781098,2700.8,2699.3,14.54337808]
[1769809539195,1.34800333,2700.8,2699.3,14.54337808]
[1769809539372,13.40220765,2701.2,2699.3,14.54337808]
[1769809539774,14.32772818,2701.2,2699.3,14.54337808]
[1769809539978,14.32772818,2701.2,2699.3,0.92616604]
[1769809543782,14.32772818,2701.2,2699.3,0.92726604]
[1769809543982,13.29980765,2700.9,2699.3,0.92726604]
[1769809544311,14.62988841,2700.8,2699.4,2.01515808]
[1769809545411,15.55554184,2700.8,2699.5,0.92609742]
[1769809545708,13.29980765,2700.6,2699.3,0.0011]
[1769809545915,13.29980765,2700.6,2699.0,0.92625225]
[1769809546122,13.29980765,2700.0,2698.8,0.92631294]
[1769809546320,13.29980765,2700.0,2698.9,0.92629776]
[1769809547159,13.29980765,2700.0,2698.8,0.92633261]
[1769809547304,13.29980765,2700.4,2699.4,0.92611492]
[1769809547633,14.22560773,2700.4,2698.7,14.54358399]
[1769809547798,1.33008076,2700.3,2698.8,1.82490718]
[1769809547998,14.62988841,2700.3,2698.8,1.82490718]
[1769809548202,0.1024,2700.2,2698.8,1.82490718]
[1769809548425,13.29980765,2700.1,2698.7,0.92637195]
[1769809550635,13.29980765,2699.9,2698.5,3.70548782]
[1769809552949,13.29980765,2699.7,2698.4,0.0011]
[1769809553869,13.29980765,2699.7,2698.4,13.61831204]
[1769809554157,0.92599451,2699.8,2698.5,15.07169417]
[1769809554765,14.22580216,2699.8,2698.5,15.07169417]
[1769809554966,14.22580216,2699.8,2698.6,0.92640628]
[1769809556887,14.22580216,2699.8,2698.4,0.0011]
[1769809557278,14.22580216,2699.8,2698.7,0.0011]
[1769809557597,15.09378567,2699.7,2698.7,0.0011]
[1769809559393,14.22587077,2699.6,2698.7,0.0011]
[1769809560391,13.40220765,2699.1,2697.2,13.61721204]
[1769809560554,13.40220765,2698.9,2697.1,0.92691481]
[1769809560757,13.40220765,2698.9,2697.0,0.92693286]
[1769809560967,13.40220765,2698.9,2696.9,17.32512049]
[1769809560968,13.29980765,2698.7,2697.1,2.75211637]
[1769809561161,13.29980765,2698.3,2696.5,13.61721204]
[1769809561384,13.29980765,2697.9,2696.6,3.70827975]
[1769809561581,13.29980765,2697.9,2696.6,0.92709337]
[1769809562901,13.29980765,2697.7,2695.9,13.61721204]
[1769809563070,0.9266123,2698.0,2696.3,0.92717988]
[1769809563071,13.29980765,2697.5,2696.3,0.92717988]
[1769809563460,0.92681841,2697.4,2696.1,3.70906109]
[1769809563863,14.22662606,2697.4,2696.1,3.70906109]
[1769809564067,0.92680055,2697.5,2696.2,13.61721204]
[1769809564400,0.92678306,2697.6,2696.2,13.61721204]
[1769809564603,0.92673303,2697.7,2696.3,15.34983935]
[1769809564806,3.70646985,2698.0,2696.3,15.34983935]
[1769809565106,0.9266123,2698.0,2696.3,15.34983935]
[1769809565600,0.9266123,2698.0,2696.4,14.54437418]
[1769809565804,0.9266123,2698.0,2696.5,0.776]
[1769809566104,2.71959032,2698.0,2696.6,1.53203742]
[1769809566869,15.40955282,2698.0,2696.6,1.53203742]
[1769809567074,0.1024,2698.8,2696.6,1.53203742]
[1769809567277,0.0295481,2700.7,2699.2,7.35062444]
[1769809567478,0.9252748,2701.9,2699.8,0.2335703]
[1769809567711,0.9252748,2701.9,2700.2,0.0295481]
[1769809567712,0.0295481,2701.8,2700.2,0.0295481]
[1769809567861,0.49218044,2701.8,2700.3,0.776]
[1769809568068,0.0295481,2701.7,2700.3,4.79097551]
[1769809568263,0.0295481,2701.7,2700.4,0.2335703]
[1769809568605,0.0295481,2701.6,2700.6,0.2335703]
[1769809568810,0.0295481,2701.6,2700.7,0.42485458]
[1769809569008,14.92517208,2702.2,2700.4,0.25578388]
[1769809569178,14.0,2702.2,2700.4,0.25578388]
[1769809569387,0.0295481,2702.1,2700.4,0.25578388]
[1769809569591,0.0295481,2702.1,2700.6,0.2335703]
[1769809569917,14.0,2701.9,2700.6,0.2335703]
[1769809570218,14.0,2701.9,2700.6,0.72202593]
[1769809571905,14.0,2701.9,2700.7,0.92568593]
[1769809572517,14.0295481,2701.8,2700.7,0.92568593]
[1769809573177,0.0295481,2701.7,2700.7,0.92568593]
[1769809574823,14.0,2701.5,2699.7,0.74893001]
[1769809575020,0.0295481,2701.6,2700.3,0.925804]
[1769809575021,14.0,2701.3,2700.3,0.925804]
[1769809575222,14.0,2701.3,2700.1,0.92586876]
[1769809575536,14.0,2701.1,2700.2,0.92585624]
[1769809575760,14.92534628,2701.7,2700.6,0.92569201]
[1769809575911,14.0,2701.5,2700.6,0.92569201]
[1769809576110,14.92548243,2701.3,2700.0,0.776]
[1769809576311,14.92548243,2701.3,2700.2,3.70342718]
[1769809576554,14.0,2701.1,2700.3,0.92579902]
[1769809576754,14.0,2701.1,2700.4,0.92578119]
[1769809576755,0.45778187,2701.0,2700.4,0.92578119]
[1769809577458,0.0295481,2700.9,2700.5,0.92574743]
[1769809578213,0.0295481,2700.9,2700.0,3.70367616]
[1769809579565,14.0295481,2700.9,2700.0,3.70367616]
[1769809580063,14.0,2700.9,2700.0,3.71848412]
[1769809580365,14.46267195,2700.9,2700.0,4.6324006]
[1769809581647,0.46267195,2700.9,2700.0,4.6324006]
[1769809581848,0.9255736,2701.1,2700.0,4.6324006]
[1769809582170,0.0295481,2701.0,2700.0,4.6324006]
[1769809585377,0.92553374,2701.2,2700.3,0.92582305]
[1769809585942,0.92553072,2701.2,2700.3,0.92582305]
[1769809586147,0.92546993,2701.4,2700.3,0.92582305]
[1769809586346,0.92546993,2701.4,2700.4,0.46439232]
[1769809586543,12.6899625,2702.5,2700.7,0.01480796]
[1769809586748,12.6899625,2702.3,2700.9,0.01480796]
[1769809588087,12.6899625,2702.3,2701.0,0.92558311]
[1769809588088,0.92517208,2702.2,2701.0,0.92558311]
[1769809588388,13.61513458,2702.2,2701.1,0.46427235]
[1769809589177,13.61513458,2702.2,2701.1,0.47908031]
[1769809590478,13.61513458,2702.2,2701.2,0.92551458]
[1769809591487,13.61513458,2702.2,2701.3,0.01480796]
[1769809591663,12.6899625,2702.2,2701.3,0.01480796]
[1769809592045,0.92517785,2702.2,2701.3,0.01480796]
[1769809593175,16.39039521,2702.4,2701.4,0.92544606]
[1769809593676,12.6899625,2702.3,2701.4,0.92544606]
[1769809594479,12.6909625,2702.0,2701.3,0.94026344]
[1769809595346,13.6152373,2701.9,2701.1,0.01480796]
[1769809596619,13.6152373,2701.9,2700.7,0.94048558]
[1769809597086,13.6152373,2701.9,2700.8,0.92564901]
[1769809597344,13.6152373,2701.9,2700.9,0.92561701]
[1769809597476,13.6152373,2701.9,2700.4,0.01480796]
[1769809597679,13.6152373,2701.9,2700.7,0.92566655]
[1769809597992,13.43273415,2701.8,2700.6,0.94051255]
[1769809598196,13.43273415,2701.8,2700.6,0.01480796]
[1769809598400,13.43273415,2701.8,2700.6,0.9405265]
[1769809598810,13.43273415,2701.8,2700.7,0.9256854]
[1769809599114,13.43273415,2701.8,2700.6,0.94050834]
[1769809599406,13.43273415,2701.8,2700.8,0.01480796]
[1769809599823,14.35807745,2701.7,2700.8,0.01480796]
[1769809610418,0.9253433,2701.7,2700.8,0.01480796]
[1769809610632,13.43373415,2702.0,2700.8,0.94045803]
[1769809610811,13.43273415,2702.3,2701.4,0.01480796]
[1769809611128,13.43273415,2702.1,2701.0,0.01480796]
[1769809612525,0.92524056,2702.0,2701.2,0.01480796]
[1769809612919,13.43273415,2701.9,2701.2,0.01480796]
[1769809614923,0.92530905,2701.8,2701.2,0.01480796]
[1769809615528,0.92529102,2701.9,2701.2,0.01480796]
[1769809615729,3.70105514,2702.0,2701.2,0.9395206]
[1769809616309,3.70084225,2702.1,2701.2,0.9395206]
[1769809616932,13.43273415,2702.1,2701.2,0.9395206]
[1769809617939,13.43273415,2702.1,2701.2,0.01400796]
[1769809619531,3.70096225,2702.1,2701.5,0.01480796]
[1769809619723,0.92524056,2702.0,2701.5,0.01275796]
[1769809620320,14.35797471,2702.0,2701.2,0.01510796]
[1769809622362,14.35797471,2702.0,2701.2,1e-08]
[1769809623135,0.775,2701.9,2701.2,1e-08]
[1769809623337,13.43273415,2701.8,2700.8,0.01480796]
[1769809623532,13.43273415,2701.6,2700.2,0.01590796]
[1769809624245,13.43273415,2701.4,2700.2,0.01590796]
[1769809624406,13.43273415,2701.2,2700.2,0.01590796]
[1769809625123,13.43273415,2700.6,2699.0,0.01480796]
[1769809625322,13.43273415,2700.0,2698.9,0.0011]
[1769809625524,13.43273415,2699.8,2698.9,0.0011]
[1769809625725,14.20773415,2699.7,2698.9,0.0011]
[1769809626342,13.43273415,2699.5,2698.9,0.0011]
[1769809628254,17.35177055,2700.1,2699.1,0.92623467]
[1769809628457,17.35177055,2700.1,2699.4,0.01480796]
[1769809628614,0.92592592,2700.0,2699.4,0.01480796]
[1769809629015,14.5740081,2700.0,2699.4,0.01480796]
[1769809630721,14.5740081,2700.0,2698.9,0.0011]
[1769809631729,14.5740081,2700.0,2698.4,0.92645373]
[1769809631964,14.5740081,2700.0,2698.1,0.94136223]
[1769809632461,13.64808218,2699.6,2698.1,0.94137877]
[1769809632622,13.64808218,2699.4,2698.1,0.01480796]
[1769809632819,13.64808218,2699.2,2698.1,0.01480796]
[1769809635190,0.92623467,2699.1,2698.1,0.01480796]
[1769809635682,1.70223467,2699.1,2698.1,0.01480796]
[1769809636444,15.35031685,2699.1,2698.1,0.01480796]
[1769809641543,15.35031685,2699.1,2697.9,0.01480796]
[1769809641776,13.64808218,2698.9,2697.8,0.0011]
[1769809642676,13.64808218,2698.9,2697.6,0.01480796]
[1769809643754,13.64808218,2698.7,2697.6,0.01480796]
[1769809645971,13.64808218,2698.5,2697.6,0.01480796]
[1769809646179,14.42408218,2698.5,2697.6,0.01480796]
[1769809646676,13.64808218,2698.4,2697.1,0.01480796]
[1769809647980,13.64808218,2698.2,2697.1,0.01480796]
[1769809649678,13.64808218,2698.2,2696.9,0.01480796]
[1769809650380,13.64808218,2698.0,2696.9,0.01480796]
[1769809650583,14.42408218,2697.9,2696.9,0.01480796]
[1769809652362,14.57476317,2697.8,2696.9,0.01480796]
[1769809654967,14.57476317,2697.8,2696.8,0.0011]
[1769809655497,14.57476317,2697.8,2696.8,0.01590796]
[1769809657011,14.57476317,2697.8,2697.1,0.0011]
[1769809657337,13.83409882,2697.7,2697.1,0.0011]
[1769809659112,0.92673848,2697.7,2697.1,0.0011]
[1769809660186,3.70630779,2698.2,2697.2,0.01480796]
[1769809660690,12.66004231,2698.1,2697.2,0.01480796]
[1769809661002,12.66004231,2698.1,2697.2,1.08642029]
[1769809661632,0.9266123,2698.0,2697.2,2.01329075]
[1769809661987,13.58654036,2698.4,2697.4,0.01480796]
[1769809663884,13.58654036,2698.4,2697.5,0.92678405]
[1769809664483,0.92649805,2698.4,2697.5,0.92678405]
[1769809664689,0.92649805,2698.4,2697.6,0.01480796]
[1769809664901,0.92649805,2698.4,2697.7,1.16269994]
[1769809665096,0.9264646,2698.5,2697.8,0.01480796]
[1769809666984,17.14122011,2699.0,2697.9,0.92664665]
[1769809666985,3.70545682,2698.8,2697.9,0.92664665]
[1769809667606,0.001,2698.9,2698.2,10.68540738]
[1769809667907,0.92633763,2698.8,2698.3,1.07002153]
[1769809668106,0.92633763,2698.8,2697.9,0.776]
[1769809668340,13.58637994,2698.8,2697.8,0.01480796]
[1769809668715,13.58637994,2698.8,2697.6,0.01480796]
[1769809668921,13.58637994,2698.8,2697.4,0.01480796]
[1769809669211,12.66004231,2698.5,2697.4,0.01480796]
[1769809670719,13.43604231,2698.5,2697.2,0.01480796]
[1769809670907,13.43604231,2698.5,2697.1,0.0011]
[1769809671127,12.66004231,2698.3,2697.1,0.0011]
[1769809672050,0.92647494,2698.4,2696.9,0.0011]
[1769809672051,12.66004231,2697.7,2696.9,0.0011]
[1769809672340,12.66004231,2697.5,2696.9,0.0011]
[1769809673049,12.66004231,2697.5,2696.2,2.16925766]
[1769809673248,0.92681841,2697.4,2696.2,2.16925766]
[1769809673423,13.58686072,2697.4,2696.2,2.16925766]
[1769809674951,13.58686072,2697.4,2696.2,2.09429459]
[1769809675118,12.66004231,2697.0,2695.8,0.0011]
[1769809675445,12.66004231,2696.6,2695.8,0.0011]
[1769809677272,0.9272653,2696.1,2695.5,0.0003]
[1769809677560,13.43604231,2696.0,2695.5,0.0003]
[1769809678120,13.43604231,2696.0,2694.9,0.01480796]
[1769809681253,0.92733409,2695.9,2694.9,0.01480796]
[1769809682154,12.66004231,2695.8,2694.7,0.9425325]
[1769809682357,12.66004231,2695.8,2694.9,0.01480796]
[1769809682955,12.66004231,2695.8,2695.1,0.01480796]
[1769809683139,12.66004231,2695.8,2695.1,0.01590796]
[1769809683339,0.9274029,2695.7,2695.1,0.01590796]
[1769809683541,0.92716214,2696.4,2695.3,0.01480796]
[1769809683740,0.92716214,2696.4,2695.5,0.01480796]
[1769809686477,0.92714584,2696.5,2695.7,0.01480796]
[1769809686682,0.92705899,2696.7,2695.7,1.179055]
[1769809686979,14.74657363,2696.8,2695.7,1.179055]
[1769809686980,1.70404827,2696.8,2695.9,0.01480796]
[1769809687277,1.70404827,2696.8,2695.7,1.16424704]
[1769809687278,15.6736219,2696.8,2695.7,1.16424704]
[1769809687494,13.96957363,2696.7,2695.7,1.16424704]
[1769809687675,13.96957363,2696.7,2695.5,0.9422551]
[1769809687848,13.96957363,2696.7,2695.5,0.94227761]
[1769809688253,13.96957363,2696.7,2695.7,0.01480796]
[1769809688755,0.92709337,2696.6,2695.8,0.92736849]
[1769809691186,3.70833617,2696.7,2695.8,0.92736849]
[1769809691379,3.70833617,2696.7,2695.9,0.46516805]
[1769809692271,0.92705899,2696.7,2695.9,0.47997601]
[1769809693471,0.92699024,2696.9,2696.0,0.9272997]
[1769809695064,0.001,2696.7,2696.0,0.9272997]
[1769809695474,0.001,2696.7,2696.0,11.61270708]
[1769809695699,0.98589334,2697.2,2696.5,0.01480796]
[1769809698265,0.98589334,2697.2,2696.6,0.92709337]
[1769809698492,17.67629762,2697.9,2696.7,0.01480796]
[1769809698692,0.92668099,2697.8,2696.7,0.01480796]
[1769809698898,14.89625462,2697.8,2696.7,0.01480796]
[1769809699205,3.70604863,2698.3,2696.6,0.92709337]
[1769809699206,14.89604857,2698.4,2697.1,10.68540738]
[1769809699389,14.89604857,2698.4,2697.2,0.01480796]
[1769809700294,14.89604857,2698.4,2697.4,0.01480796]
[1769809700502,0.92647494,2698.4,2697.6,0.01480796]
[1769809700702,1.41753771,2698.4,2697.6,0.01480796]
[1769809702636,0.001,2698.7,2698.0,0.01480796]
[1769809702936,14.89687775,2698.9,2697.4,0.01480796]
[1769809703105,15.67387775,2698.9,2697.4,0.01480796]
[1769809703306,3.70521323,2699.3,2697.4,0.01480796]
[1769809703307,0.38101441,2700.0,2698.2,0.01480796]
[1769809703537,0.10241533,2701.8,2700.0,2.04352779]
[1769809703538,0.01480796,2701.0,2700.0,2.04352779]
[1769809703860,13.96957363,2701.5,2700.1,2.60930628]
[1769809703996,0.92530905,2701.8,2701.0,0.02961592]
[1769809704194,0.92530905,2701.8,2700.3,0.01480796]
[1769809704533,0.27372644,2701.9,2700.4,0.92578877]
[1769809704534,1.19901034,2701.9,2700.4,0.92578877]
[1769809704726,1.19900239,2701.9,2700.4,0.92578877]
[1769809704891,0.92527595,2701.9,2700.4,0.92578877]
[1769809705092,0.92527595,2701.9,2700.5,0.46437518]
[1769809705721,3.70058561,2702.3,2700.6,0.2335703]
[1769809705923,14.8945061,2702.9,2701.0,9.83409442]
[1769809706232,2.05500057,2701.0,2700.9,0.776]
[1769809706528,1.95290723,2702.0,2700.9,0.776]
[1769809706730,2.98024113,2702.0,2700.6,3.70284786]
[1769809707027,2.98024113,2702.0,2700.7,1.70166019]
[1769809707206,0.001,2701.7,2700.8,0.9256505]
[1769809707402,0.001,2701.7,2700.6,0.92568857]
[1769809707633,0.001,2701.7,2700.7,0.776]
[1769809708028,13.97057363,2701.7,2700.5,0.01480796]
[1769809708230,13.97057363,2701.7,2700.1,0.01480796]
[1769809708532,13.96957363,2701.5,2700.1,1.7166761]
[1769809709928,13.96957363,2701.5,2700.1,0.9406761]
[1769809710140,13.77982363,2701.5,2700.1,0.9406761]
[1769809710437,13.77982363,2701.5,2699.4,3.70439655]
[1769809710611,13.77982363,2701.5,2699.9,0.92596022]
[1769809710612,13.96957363,2701.3,2699.9,0.92596022]
[1769809712611,13.96957363,2701.1,2699.9,0.92596022]
[1769809715841,0.92558311,2701.0,2699.9,0.92596022]
[1769809718037,14.87934899,2701.0,2699.9,0.92596022]
[1769809718936,0.001,2700.8,2699.9,0.92596022]
[1769809719112,0.001,2700.8,2700.0,0.54059051]
[1769809720223,0.001,2700.8,2700.0,1.4664924]
[1769809721512,13.95376588,2703.1,2701.0,5.39492885]
[1769809721712,13.95376588,2703.5,2701.9,0.01480796]
[1769809721921,10.79107847,2703.5,2702.0,0.2335703]
[1769809722142,10.79107847,2703.5,2702.3,0.92513784]
[1769809722447,11.71581022,2703.5,2702.4,3.37496109]
[1769809722609,13.95376588,2703.3,2702.2,0.92516862]
[1769809723026,13.95376588,2703.3,2702.1,0.92518557]
[1769809723318,13.95376588,2703.3,2701.8,0.92528818]
[1769809723771,13.95376588,2703.3,2701.5,0.92537811]
[1769809723943,0.92473175,2703.5,2701.1,0.53949289]
[1769809723944,13.95376588,2703.1,2701.8,0.92528999]
[1769809724141,13.95376588,2702.9,2701.9,0.92527439]
[1769809724342,0.9249667,2702.8,2701.3,3.70179491]
[1769809724534,14.87873258,2702.8,2701.3,3.70179491]
[1769809728352,14.87873258,2702.8,2701.3,0.92548032]
[1769809728759,13.95376588,2704.0,2701.5,6.69424918]
[1769809728998,0.0189228,2704.4,2701.5,6.69424918]
[1769809728999,14.89713998,2704.4,2702.6,0.2335703]
[1769809729125,13.97268868,2704.4,2702.8,0.2335703]
[1769809729460,14.89711043,2704.4,2702.8,0.2335703]
[1769809729647,13.97268868,2704.4,2702.8,0.2335703]
[1769809729829,13.97268868,2704.4,2702.8,0.98938494]
[1769809730926,13.97268868,2704.4,2703.0,0.2335703]
[1769809731255,0.92445364,2704.3,2703.0,0.2335703]
[1769809731667,14.87821952,2704.3,2702.9,0.92493247]
[1769809734675,14.87821952,2704.3,2703.0,0.2335703]
[1769809735196,14.87821952,2704.3,2702.9,0.92493247]
[1769809736645,14.87821952,2704.3,2702.8,1.69994613]
[1769809736847,13.95376588,2704.1,2702.8,0.92494613]
[1769809737090,13.95376588,2704.1,2702.7,3.6998668]
[1769809737091,0.92455621,2704.0,2702.7,3.6998668]
[1769809740057,14.87832209,2704.0,2702.7,3.6998668]
[1769809740765,0.92455621,2704.0,2702.7,3.6998668]
[1769809740965,0.92455621,2704.0,2702.8,0.73997336]
[1769809741392,0.92452202,2704.1,2702.9,0.92493247]
[1769809744593,0.0189228,2704.4,2703.1,6.69424918]
[1769809745584,0.0189228,2704.4,2703.2,6.69324918]
[1769809745886,0.12165543,2704.9,2703.4,6.92681948]
[1769809746092,0.12165543,2704.9,2703.6,6.90789668]
[1769809746665,0.12165543,2704.9,2703.8,0.2335703]
[1769809747189,0.12165543,2704.9,2703.8,6.90789668]
[1769809747904,0.12165543,2704.9,2703.7,0.9246588]
[1769809747905,14.5447523,2704.9,2703.7,0.9246588]
[1769809748087,13.49884472,2704.7,2703.7,0.9246588]
[1769809748399,0.12165543,2704.9,2703.7,1.6996588]
[1769809749667,1.04590585,2704.9,2703.7,1.6996588]
[1769809750191,14.54475057,2704.9,2703.7,1.6996588]
[1769809750388,14.54475057,2704.9,2703.8,0.775]
[1769809750792,14.54475057,2704.9,2703.9,0.9245904]
[1769809750993,14.54475057,2704.9,2704.0,0.5397952]
[1769809751891,13.62050015,2704.9,2704.0,0.5397952]
[1769809752291,0.12165543,2704.9,2704.0,0.5397952]
[1769809752488,0.12165543,2704.9,2704.1,0.2335703]
[1769809752689,0.12165543,2704.9,2704.1,0.92452202]
[1769809752896,0.12165543,2704.9,2704.2,0.51624053]
[1769809754902,0.12165543,2704.9,2704.3,0.92445364]
[1769809755466,14.42286643,2705.6,2704.3,0.92445364]
[1769809757007,0.001,2704.7,2704.3,0.82100364]
[1769809757174,14.42286643,2705.6,2704.4,0.50351715]
[1769809758038,13.49884472,2706.0,2704.4,7.17784353]
[1769809759011,13.49884472,2705.8,2704.5,0.92438528]
[1769809760079,13.49884472,2705.8,2704.4,0.92439845]
[1769809761221,13.49884472,2705.6,2704.1,3.69806546]
[1769809763327,14.42288833,2705.5,2704.1,3.69806546]
[1769809765838,14.42288833,2705.5,2704.2,0.2335703]
[1769809766128,14.42289091,2705.5,2704.2,0.2335703]
[1769809768204,14.42289091,2705.5,2704.3,0.92445364]
[1769809768406,14.42289091,2705.5,2704.4,0.48558385]
[1769809769607,13.49984472,2705.4,2704.4,0.48558385]
[1769809770832,13.49984472,2705.4,2704.5,0.92438528]
[1769809770995,14.42392969,2705.4,2704.5,0.92438528]
[1769809771723,14.42392969,2705.4,2704.4,1.40997933]
[1769809771925,13.49884472,2705.3,2704.4,1.69839548]
[1769809772825,13.49884472,2705.1,2704.3,0.0011]